bitfinex/quotes_BTCUSD_20240906
["timestamp","ask_amount","ask_price","bid_price","bid_amount"]
[1725587872918,2.48154003,56693.0,56692.0,0.03787106]
[1725587873793,2.50454003,56693.0,56692.0,0.03787106]
[1725587875650,2.53219263,56693.0,56692.0,0.03787106]
[1725587876087,2.49439263,56693.0,56692.0,0.03787106]
[1725587876560,2.50439263,56693.0,56692.0,0.03787106]
[1725587877259,2.49439263,56693.0,56692.0,0.03787106]
[1725587877698,2.50439263,56693.0,56692.0,0.03787106]
[1725587877942,2.52371463,56693.0,56692.0,0.03787106]
[1725587878732,2.49606203,56693.0,56692.0,0.03787106]
[1725587878916,2.4978497,56693.0,56692.0,0.03787106]
[1725587879164,2.49606203,56693.0,56692.0,0.03787106]
[1725587879902,2.49606203,56693.0,56692.0,0.03950306]
[1725587881094,2.51606203,56693.0,56692.0,0.03950306]
[1725587881321,2.54371468,56693.0,56692.0,0.03950306]
[1725587881634,2.51606203,56693.0,56692.0,0.03950306]
[1725587882075,2.54550233,56693.0,56692.0,0.03950306]
[1725587883742,2.89827933,56693.0,56692.0,0.03950306]
[1725587884980,3.49427933,56693.0,56692.0,0.03950306]
[1725587885150,3.53444081,56693.0,56692.0,0.03950306]
[1725587885633,3.56208468,56693.0,56692.0,0.03950306]
[1725587886118,2.04833567,56685.0,56684.0,0.04214884]
[1725587886361,7.72133567,56685.0,56684.0,0.04214884]
[1725587886826,7.76746215,56685.0,56684.0,0.04214884]
[1725587887544,7.77946215,56685.0,56684.0,0.04214884]
[1725587887780,4.65890448,56685.0,56684.0,0.04214884]
[1725587888021,2.48472009,56685.0,56684.0,0.04214884]
[1725587888313,2.49672009,56685.0,56684.0,0.16854884]
[1725587888559,2.49372009,56685.0,56684.0,0.16854884]
[1725587888808,2.25298647,56685.0,56684.0,0.27164884]
[1725587889031,1.36795161,56685.0,56684.0,0.27164884]
[1725587889264,1.35695161,56685.0,56684.0,0.27164884]
[1725587889494,1.36495161,56685.0,56684.0,0.27164884]
[1725587889759,0.91212461,56685.0,56684.0,0.27186117]
[1725587889991,0.890067,56685.0,56684.0,0.27186117]
[1725587890219,0.890067,56685.0,56684.0,0.27164884]
[1725587890674,0.882067,56685.0,56684.0,0.27164884]
[1725587891127,0.891067,56685.0,56684.0,0.27164884]
[1725587891638,0.994067,56685.0,56684.0,0.27164884]
[1725587891846,0.985067,56685.0,56684.0,0.27164884]
[1725587892087,0.988067,56685.0,56684.0,0.27164884]
[1725587894578,1.363894,56685.0,56684.0,0.27164884]
[1725587894806,1.340894,56685.0,56684.0,0.27164884]
[1725587895466,1.340894,56685.0,56684.0,0.27186117]
[1725587895467,0.988067,56685.0,56684.0,0.27186117]
[1725587896029,0.988067,56685.0,56684.0,0.30460151]
[1725587896136,0.63524,56685.0,56684.0,0.30460151]
[1725587896578,0.988067,56685.0,56684.0,0.30460151]
[1725587896786,0.988067,56685.0,56684.0,0.27186117]
[1725587897003,1.03117321,56685.0,56684.0,0.27186117]
[1725587897226,1.03117321,56685.0,56684.0,0.30459738]
[1725587897465,1.02817321,56685.0,56684.0,0.30459738]
[1725587897680,1.02817321,56685.0,56684.0,0.30559738]
[1725587897888,1.03117321,56685.0,56684.0,0.30559738]
[1725587898542,0.55069317,56685.0,56684.0,0.30559738]
[1725587899003,0.54769317,56685.0,56684.0,0.30559738]
[1725587899905,0.90052017,56685.0,56684.0,0.30559738]
[1725587900144,0.91710332,56685.0,56684.0,0.30559738]
[1725587900360,0.91710332,56685.0,56684.0,0.27264884]
[1725587900361,1.25334717,56685.0,56684.0,0.27264884]
[1725587900586,1.25334717,56685.0,56684.0,0.16954884]
[1725587901251,1.26993116,56685.0,56684.0,0.16954884]
[1725587901962,1.29758402,56685.0,56684.0,0.16954884]
[1725587902188,1.29758402,56685.0,56684.0,0.27264884]
[1725587902189,0.59193002,56685.0,56684.0,0.27264884]
[1725587902436,0.59193002,56685.0,56684.0,0.30558461]
[1725587902687,0.23910302,56685.0,56684.0,0.30558461]
[1725587902895,0.56427716,56685.0,56684.0,0.30558461]
[1725587903123,0.54769317,56685.0,56684.0,0.30558461]
[1725587904934,0.90052017,56685.0,56684.0,0.30537228]
[1725587906015,0.92817244,56685.0,56684.0,0.30537228]
[1725587906239,0.92817244,56685.0,56684.0,0.30558461]
[1725587907385,0.92817244,56685.0,56684.0,0.30537228]
[1725587907612,0.92817244,56685.0,56684.0,0.27264884]
[1725587908097,0.92817244,56685.0,56684.0,0.3053683]
[1725587909899,0.92817244,56685.0,56684.0,0.8346173]
[1725587909900,0.04610544,56685.0,56684.0,0.8346173]
[1725587910136,0.04610544,56685.0,56684.0,0.83482963]
[1725587910389,0.000817,56692.0,56691.0,0.75379533]
[1725587910633,0.000817,56692.0,56691.0,1.45937333]
[1725587910846,0.08023363,56709.0,56706.0,0.22461233]
[1725587910847,0.881725,56707.0,56706.0,0.22461233]
[1725587911073,0.529035,56707.0,56706.0,0.22461233]
[1725587911301,0.881725,56707.0,56706.0,0.2244]
[1725587911884,0.9036318,56707.0,56706.0,0.2596334]
[1725587912464,0.9036318,56707.0,56706.0,0.2244]
[1725587912691,0.9046318,56707.0,56706.0,0.2264]
[1725587912912,0.9046318,56707.0,56706.0,0.2616334]
[1725587913342,1.0046318,56707.0,56706.0,0.2616334]
[1725587913557,0.8282868,56707.0,56706.0,0.2616334]
[1725587913998,0.8292868,56707.0,56706.0,0.2626334]
[1725587914215,1.0056318,56707.0,56706.0,0.2626334]
[1725587914453,0.6529418,56707.0,56706.0,0.26284573]
[1725587915171,1.0056318,56707.0,56706.0,0.2626334]
[1725587915377,1.03327466,56707.0,56706.0,0.2626334]
[1725587916545,1.03327466,56707.0,56706.0,0.1575334]
[1725587916546,1.38596466,56707.0,56706.0,0.1575334]
[1725587917070,1.03409066,56707.0,56706.0,0.1575334]
[1725587917520,1.38678066,56707.0,56706.0,0.1575334]
[1725587919395,1.3591378,56707.0,56706.0,0.1575334]
[1725587919630,1.5272218,56707.0,56706.0,0.0382334]
[1725587920333,1.5512218,56707.0,56706.0,0.0382334]
[1725587920580,1.5512218,56707.0,56706.0,0.003]
[1725587920581,1.7348278,56707.0,56706.0,0.003]
[1725587920824,1.7348278,56707.0,56694.0,1.349599]
[1725587920825,1.234674,56695.0,56694.0,1.251499]
[1725587921081,0.176388,56693.0,56692.0,0.1224]
[1725587921310,1.234719,56693.0,56692.0,0.1224]
[1725587921527,1.439608,56693.0,56692.0,0.1224]
[1725587921750,1.363211,56693.0,56692.0,0.1224]
[1725587922013,1.234719,56693.0,56692.0,0.1224]
[1725587922246,1.547219,56693.0,56692.0,0.1224]
[1725587922692,1.234719,56693.0,56692.0,0.1224]
[1725587922906,1.40614,56693.0,56692.0,0.1224]
[1725587923127,1.235719,56693.0,56692.0,0.1224]
[1725587923358,1.25882611,56693.0,56692.0,0.1224]
[1725587923804,1.235719,56693.0,56692.0,0.12261233]
[1725587924010,0.882942,56693.0,56692.0,0.12261233]
[1725587924243,1.236719,56693.0,56692.0,0.1224]
[1725587924725,1.235719,56693.0,56692.0,0.1224]
[1725587924917,1.234719,56693.0,56692.0,0.1224]
[1725587925126,0.881942,56693.0,56692.0,0.12235662]
[1725587925761,0.882942,56693.0,56692.0,0.1575153]
[1725587926682,0.91059067,56693.0,56692.0,0.1575153]
[1725587926907,0.91159067,56693.0,56692.0,0.1575153]
[1725587928480,0.91159067,56693.0,56692.0,0.1591473]
[1725587928711,0.91159067,56693.0,56692.0,0.15935963]
[1725587929405,0.55881367,56693.0,56692.0,0.15935963]
[1725587929614,0.91159067,56693.0,56692.0,0.15935963]
[1725587929840,0.91159067,56693.0,56692.0,0.1591473]
[1725587933682,0.91159067,56693.0,56692.0,0.15935963]
[1725587934571,0.883942,56693.0,56692.0,0.15935963]
[1725587937935,0.87902013,56693.0,56692.0,0.15935963]
[1725587938740,0.20603646,56693.0,56692.0,0.15935963]
[1725587939172,0.02964846,56693.0,56692.0,0.15935963]
[1725587939579,0.20603646,56693.0,56692.0,0.15935963]
[1725587940043,0.55881346,56693.0,56692.0,0.15935963]
[1725587940399,0.20603646,56693.0,56692.0,0.15935963]
[1725587940705,0.178388,56693.0,56692.0,0.15935963]
[1725587940929,0.883942,56693.0,56692.0,0.15935963]
[1725587941140,0.531981,56693.0,56692.0,0.15935963]
[1725587941378,0.002816,56693.0,56692.0,0.1591473]
[1725587941605,0.002816,56693.0,56692.0,0.6883213]
[1725587941829,0.002816,56693.0,56692.0,0.3355383]
[1725587942044,0.179204,56693.0,56692.0,0.1591473]
[1725587942258,0.531981,56693.0,56692.0,0.1591473]
[1725587943138,0.531981,56693.0,56692.0,0.15935963]
[1725587943342,0.531981,56693.0,56692.0,0.1591473]
[1725587943549,0.884758,56693.0,56692.0,0.1591473]
[1725587943989,0.884758,56693.0,56692.0,0.15935963]
[1725587944438,0.55393248,56693.0,56692.0,0.15935963]
[1725587944668,0.90670948,56693.0,56692.0,0.1591473]
[1725587946014,0.90670948,56693.0,56692.0,0.15935963]
[1725587948026,1.25948648,56693.0,56692.0,0.03679068]
[1725587948505,1.35948648,56693.0,56692.0,0.03679068]
[1725587948727,2.07841048,56693.0,56692.0,0.001632]
[1725587949369,1.85132448,56693.0,56692.0,0.001632]
[1725587951758,2.20410148,56693.0,56692.0,0.001632]
[1725587951948,3.38640648,56693.0,56692.0,0.001632]
[1725587952156,2.93115527,56693.0,56692.0,0.001632]
[1725587952398,2.78199527,56693.0,56692.0,0.001632]
[1725587953547,2.59197927,56693.0,56692.0,0.001632]
[1725587953776,2.94475627,56693.0,56692.0,0.001632]
[1725587954007,2.77969127,56693.0,56692.0,0.001632]
[1725587954671,2.42691427,56693.0,56692.0,0.001632]
[1725587954893,1.58834227,56693.0,56692.0,0.001632]
[1725587955216,1.56534227,56693.0,56692.0,0.001632]
[1725587956612,1.38712527,56693.0,56692.0,0.001632]
[1725587957046,1.88008027,56693.0,56692.0,0.001632]
[1725587958862,1.64804827,56693.0,56692.0,0.001632]
[1725587959315,1.56534827,56693.0,56692.0,0.001632]
[1725587961140,1.56534827,56693.0,56692.0,0.232732]
[1725587961141,0.984758,56693.0,56692.0,0.232732]
[1725587961352,0.884758,56693.0,56692.0,0.23294433]
[1725587961577,0.531981,56693.0,56692.0,0.26896693]
[1725587961782,0.179204,56693.0,56692.0,0.26896693]
[1725587962242,0.531981,56693.0,56692.0,0.26896693]
[1725587962904,0.179204,56693.0,56692.0,0.26896693]
[1725587963659,0.531981,56693.0,56692.0,0.26896693]
[1725587964531,0.179204,56693.0,56692.0,0.26896693]
[1725587965226,0.179204,56693.0,56692.0,0.2687546]
[1725587965419,0.179204,56693.0,56692.0,0.26896693]
[1725587965848,0.884758,56693.0,56692.0,0.2687546]
[1725587966050,0.179204,56693.0,56692.0,0.2687546]
[1725587967386,0.179204,56693.0,56692.0,0.26896693]
[1725587968238,0.531981,56693.0,56692.0,0.26896693]
[1725587968687,0.002816,56693.0,56692.0,0.26896693]
[1725587970614,0.002816,56693.0,56692.0,0.44535793]
[1725587971274,0.002816,56693.0,56692.0,0.79814093]
[1725587974092,0.002816,56693.0,56692.0,1.15092393]
[1725587975577,0.002816,56693.0,56692.0,0.79814093]
[1725587976534,0.002816,56693.0,56692.0,0.44535793]
[1725587976759,0.002816,56693.0,56692.0,0.79814093]
[1725587977867,0.002816,56693.0,56692.0,0.44535793]
[1725587981678,0.002816,56693.0,56692.0,0.26896693]
[1725587982412,0.179204,56693.0,56692.0,0.26896693]
[1725587985987,0.179204,56693.0,56692.0,0.1665546]
[1725587986280,0.179204,56693.0,56692.0,0.16676693]
[1725587986281,0.531981,56693.0,56692.0,0.16676693]
[1725587986497,0.531981,56693.0,56692.0,0.03786693]
[1725587986958,0.352775,56694.0,56692.0,0.03786693]
[1725587987171,0.52916,56694.0,56693.0,0.00021233]
[1725587987572,0.52916,56694.0,56693.0,0.03620946]
[1725587988918,0.176385,56694.0,56693.0,0.03620946]
[1725587989133,0.1,56696.0,56695.0,0.17659433]
[1725587989356,0.629123,56698.0,56697.0,0.00021233]
[1725587989585,0.629123,56698.0,56695.0,0.1306]
[1725587989586,0.352752,56697.0,56695.0,0.16660575]
[1725587989803,0.629137,56696.0,56695.0,0.13081233]
[1725587990018,0.529137,56696.0,56695.0,0.13081233]
[1725587990232,0.629137,56696.0,56695.0,0.13181233]
[1725587990684,0.1,56696.0,56695.0,0.13181233]
[1725587992072,0.276379,56696.0,56695.0,0.13181233]
[1725587993357,0.1,56696.0,56695.0,0.13181233]
[1725587993997,0.1,56696.0,56695.0,0.30819433]
[1725587994205,0.276379,56696.0,56695.0,0.13181233]
[1725587995921,0.276379,56696.0,56695.0,0.001]
[1725587995922,1.081495,56696.0,56695.0,0.001]
[1725587996131,0.728737,56696.0,56695.0,0.001]
[1725587996550,0.629137,56696.0,56695.0,0.001]
[1725587996982,1.334653,56696.0,56695.0,0.001]
[1725587997188,1.00953135,56696.0,56695.0,0.001]
[1725587997394,1.36228935,56696.0,56695.0,0.001]
[1725587998059,1.00953135,56696.0,56695.0,0.001]
[1725587998296,1.36228935,56696.0,56695.0,0.001]
[1725587999209,1.36310535,56696.0,56695.0,0.001]
[1725588000064,1.335469,56696.0,56695.0,0.001]
[1725588000355,1.36310536,56696.0,56695.0,0.001]
[1725588001160,1.38155853,56696.0,56695.0,0.001]
[1725588001424,1.36310536,56696.0,56695.0,0.001]
[1725588002539,1.01034736,56696.0,56695.0,0.001]
[1725588002756,1.01034736,56696.0,56693.0,0.00021233]
[1725588002757,0.881927,56694.0,56693.0,0.00021233]
[1725588002970,0.881927,56694.0,56693.0,0.10191233]
[1725588003184,0.176385,56694.0,56693.0,0.23011233]
[1725588003393,0.529156,56694.0,56693.0,0.23011233]
[1725588003608,0.176385,56694.0,56693.0,0.23011233]
[1725588003877,0.529156,56694.0,56693.0,0.23011233]
[1725588004499,0.176385,56694.0,56693.0,0.23011233]
[1725588004716,0.529156,56694.0,56693.0,0.23011233]
[1725588005393,0.529156,56694.0,56692.0,1.253131]
[1725588005394,0.724765,56693.0,56692.0,0.001632]
[1725588005584,0.724765,56693.0,56684.0,0.04214884]
[1725588005585,1.334494,56685.0,56684.0,0.04214884]
[1725588005820,1.81773198,56685.0,56684.0,0.04214884]
[1725588006057,1.26253239,56685.0,56684.0,0.04214884]
[1725588006287,1.06154282,56685.0,56684.0,0.04214884]
[1725588006516,0.982067,56685.0,56684.0,0.17034884]
[1725588006886,0.276413,56685.0,56684.0,0.17034884]
[1725588007041,0.1,56685.0,56684.0,0.17034884]
[1725588007237,0.276413,56685.0,56684.0,0.17056117]
[1725588007450,0.07947582,56690.0,56684.0,0.04236117]
[1725588007451,0.3749927,56690.0,56684.0,0.04236117]
[1725588007674,0.43824982,56694.0,56686.0,0.1282]
[1725588007900,0.176407,56687.0,56686.0,0.1282]
[1725588008134,0.529221,56687.0,56686.0,0.1282]
[1725588008353,1.234894,56685.0,56684.0,0.04214884]
[1725588008566,1.704916,56685.0,56684.0,0.04614884]
[1725588008787,1.808716,56685.0,56684.0,0.04614884]
[1725588009073,1.663857,56685.0,56684.0,0.04214884]
[1725588009735,1.578256,56685.0,56684.0,0.04214884]
[1725588010665,2.031083,56685.0,56684.0,0.04214884]
[1725588011135,2.16121162,56685.0,56684.0,0.04214884]
[1725588011367,1.3625468,56685.0,56684.0,0.04214884]
[1725588011643,1.4645348,56685.0,56684.0,0.04214884]
[1725588012116,1.4645348,56685.0,56684.0,0.04514884]
[1725588013515,1.3625468,56685.0,56684.0,0.04514884]
[1725588014946,1.0097198,56685.0,56684.0,0.04514884]
[1725588015186,1.0097198,56685.0,56684.0,0.27314884]
[1725588015187,0.0276528,56685.0,56684.0,0.27314884]
[1725588015433,0.2040658,56685.0,56684.0,0.27314884]
[1725588015659,0.2040658,56685.0,56684.0,0.30317717]
[1725588015897,0.9097198,56685.0,56684.0,0.30317717]
[1725588016115,0.9097198,56685.0,56684.0,0.20357717]
[1725588018496,0.9097198,56685.0,56684.0,0.2037895]
[1725588018712,0.882067,56685.0,56684.0,0.2037895]
[1725588018942,0.882067,56685.0,56684.0,0.20357717]
[1725588019182,0.882067,56685.0,56684.0,0.07517717]
[1725588019835,0.882067,56685.0,56684.0,0.0753895]
[1725588021138,0.52924,56685.0,56684.0,0.0753895]
[1725588021370,0.882067,56685.0,56684.0,0.0753895]
[1725588021629,0.52924,56685.0,56684.0,0.0753895]
[1725588022073,0.882067,56685.0,56684.0,0.0753895]
[1725588022726,0.882067,56685.0,56684.0,0.07517717]
[1725588023691,0.80307569,56685.0,56684.0,0.07517717]
[1725588023933,1.40648269,56685.0,56684.0,0.07517717]
[1725588024174,1.52948269,56685.0,56684.0,0.04514884]
[1725588024472,1.88230969,56685.0,56684.0,0.04514884]
[1725588025109,2.23513669,56685.0,56684.0,0.04514884]
[1725588025999,2.24692436,56685.0,56684.0,0.04514884]
[1725588026229,2.34642436,56685.0,56684.0,0.04514884]
[1725588027362,2.35242436,56685.0,56684.0,0.04214884]
[1725588027577,2.34642436,56685.0,56684.0,0.04214884]
[1725588027794,2.35242436,56685.0,56684.0,0.04214884]
[1725588028260,2.34642436,56685.0,56684.0,0.04214884]
[1725588028476,2.35642436,56685.0,56684.0,0.04214884]
[1725588028693,2.36542436,56685.0,56684.0,0.04214884]
[1725588029128,2.36463669,56685.0,56684.0,0.04214884]
[1725588029638,2.36542436,56685.0,56684.0,0.04214884]
[1725588031606,3.28327552,56685.0,56684.0,0.04214884]
[1725588031843,3.31821644,56685.0,56684.0,0.04214884]
[1725588032023,3.31821644,56685.0,56684.0,0.02935442]
[1725588032024,3.34587416,56685.0,56684.0,0.02935442]
[1725588032243,3.32908322,56685.0,56684.0,0.02295721]
[1725588032453,3.30143534,56685.0,56684.0,0.02295721]
[1725588032675,3.30143534,56685.0,56684.0,0.00376558]
[1725588032884,3.32908325,56685.0,56684.0,0.00376558]
[1725588033112,3.32908325,56685.0,56684.0,5.8e-07]
[1725588033345,3.32908325,56685.0,56678.0,0.001632]
[1725588033346,2.04643967,56679.0,56678.0,0.001632]
[1725588033564,6.667355,56679.0,56678.0,0.001632]
[1725588033784,4.739461,56679.0,56678.0,0.001632]
[1725588034003,2.35588209,56679.0,56678.0,0.001632]
[1725588034627,2.46156976,56679.0,56678.0,0.001632]
[1725588034854,2.46456976,56679.0,56678.0,0.001632]
[1725588035086,2.47756976,56679.0,56678.0,0.001632]
[1725588035951,2.47120117,56679.0,56678.0,0.001632]
[1725588036158,2.48903014,56679.0,56678.0,0.001632]
[1725588036575,2.53218814,56679.0,56678.0,0.001632]
[1725588037032,2.52918814,56679.0,56678.0,0.001632]
[1725588037238,2.53718814,56679.0,56678.0,0.001632]
[1725588037838,2.53818814,56679.0,56678.0,0.001632]
[1725588038059,2.54618814,56679.0,56678.0,0.001632]
[1725588041421,2.51852922,56679.0,56678.0,0.001632]
[1725588042809,2.51774155,56679.0,56678.0,0.001632]
[1725588043020,2.54540151,56679.0,56678.0,0.001632]
[1725588045920,2.57305174,56679.0,56678.0,0.001632]
[1725588048520,2.54617945,56679.0,56678.0,0.001632]
[1725588048873,1.94729745,56679.0,56678.0,0.001632]
[1725588048959,6.99729745,56679.0,56678.0,0.001632]
[1725588049377,6.22261745,56679.0,56678.0,0.001632]
[1725588051449,7.20758829,56679.0,56678.0,1e-06]
[1725588051694,7.207504,56679.0,56678.0,1e-06]
[1725588052150,7.15290703,56679.0,56678.0,1e-06]
[1725588052322,7.31265803,56679.0,56678.0,1e-06]
[1725588053196,7.31087036,56679.0,56678.0,1e-06]
[1725588053412,7.3840796,56679.0,56678.0,1e-06]
[1725588053644,7.38586727,56679.0,56678.0,1e-06]
[1725588054321,7.43655355,56679.0,56678.0,1e-06]
[1725588054539,7.28623783,56679.0,56678.0,1e-06]
[1725588055006,7.43675373,56679.0,56678.0,1e-06]
[1725588056971,7.4365414,56679.0,56678.0,1e-06]
[1725588057619,7.2860239,56679.0,56678.0,1e-06]
[1725588058066,7.18035464,56679.0,56678.0,1e-06]
[1725588058284,7.25602953,56679.0,56678.0,1e-06]
[1725588059372,7.30714919,56679.0,56678.0,1e-06]
[1725588059580,7.30796519,56679.0,56678.0,1e-06]
[1725588060524,7.30796519,56679.0,56670.0,0.001632]
[1725588060525,0.01178767,56671.0,56670.0,0.001632]
[1725588060714,3.42327523,56671.0,56670.0,0.001632]
[1725588060931,4.12910323,56671.0,56670.0,0.001632]
[1725588061188,2.12191807,56671.0,56670.0,0.001632]
[1725588061375,7.17191807,56671.0,56670.0,0.001632]
[1725588061588,6.86441007,56671.0,56670.0,0.001632]
[1725588062031,6.90607206,56671.0,56670.0,0.001632]
[1725588062523,6.90428439,56671.0,56670.0,0.001632]
[1725588063340,6.91828439,56671.0,56670.0,0.001632]
[1725588064033,6.94100507,56671.0,56670.0,0.001632]
[1725588065072,7.04675284,56671.0,56670.0,0.001632]
[1725588065256,6.94100507,56671.0,56670.0,0.001632]
[1725588065692,6.9402174,56671.0,56670.0,0.001632]
[1725588065892,6.52206585,56671.0,56670.0,0.001632]
[1725588066314,6.41630307,56671.0,56670.0,0.001632]
[1725588066748,6.5220849,56671.0,56670.0,0.001632]
[1725588066967,6.4155154,56671.0,56670.0,0.001632]
[1725588067379,6.54770011,56671.0,56670.0,0.001632]
[1725588067641,6.4155154,56671.0,56670.0,0.001632]
[1725588067823,6.54770011,56671.0,56670.0,0.001632]
[1725588068720,6.52082579,56671.0,56670.0,0.001632]
[1725588068936,6.52003812,56671.0,56670.0,0.001632]
[1725588069439,5.78021012,56671.0,56670.0,0.227932]
[1725588069652,1.74503141,56671.0,56670.0,0.227932]
[1725588070545,2.56673054,56671.0,56670.0,0.001632]
[1725588070911,2.44685941,56671.0,56670.0,0.001632]
[1725588070989,2.52607159,56671.0,56670.0,0.001632]
[1725588071202,2.55628392,56671.0,56670.0,0.001632]
[1725588071628,2.54228392,56671.0,56670.0,0.001632]
[1725588072479,2.18936992,56671.0,56670.0,0.001632]
[1725588072697,2.19736992,56671.0,56670.0,0.001632]
[1725588072909,2.14760703,56671.0,56670.0,0.001632]
[1725588073583,6.19226103,56671.0,56670.0,0.001632]
[1725588074669,6.54517503,56671.0,56670.0,0.001632]
[1725588074884,6.19226103,56671.0,56670.0,0.001632]
[1725588075111,6.26968957,56671.0,56670.0,0.001632]
[1725588075336,6.70003241,56671.0,56670.0,0.001632]
[1725588075884,6.27147724,56671.0,56670.0,0.001632]
[1725588076096,6.27068957,56671.0,56670.0,0.001632]
[1725588076323,6.34711905,56671.0,56670.0,0.001632]
[1725588076533,6.08346357,56671.0,56670.0,0.001632]
[1725588076941,5.73054957,56671.0,56670.0,0.001632]
[1725588077406,6.31970188,56671.0,56670.0,0.001632]
[1725588078042,6.08346357,56671.0,56670.0,0.001632]
[1725588078253,6.31970036,56671.0,56670.0,0.001632]
[1725588078462,6.16189366,56671.0,56670.0,0.001632]
[1725588078684,2.158326,56668.0,56667.0,4.1e-07]
[1725588078900,0.892455,56660.0,56659.0,0.0299962]
[1725588079117,6.77606923,56660.0,56659.0,0.0299962]
[1725588079371,7.12905123,56660.0,56659.0,0.0299962]
[1725588079587,7.1705044,56660.0,56659.0,0.0299962]
[1725588080220,6.8207264,56660.0,56659.0,0.0299962]
[1725588080440,6.5648184,56660.0,56659.0,0.0299962]
[1725588081143,6.5658184,56660.0,56659.0,0.0299962]
[1725588081347,6.5938184,56660.0,56659.0,0.0299962]
[1725588081558,6.58060607,56660.0,56659.0,0.0299962]
[1725588081776,6.59460607,56660.0,56659.0,0.0299962]
[1725588081988,6.58060607,56660.0,56659.0,0.0299962]
[1725588082211,6.60827446,56660.0,56659.0,0.0299962]
[1725588082418,6.62227446,56660.0,56659.0,0.0299962]
[1725588083037,6.62048679,56660.0,56659.0,0.0299962]
[1725588083469,6.6420858,56660.0,56659.0,0.0299962]
[1725588083884,6.77442144,56660.0,56659.0,0.0299962]
[1725588084341,6.6420858,56660.0,56659.0,0.0299962]
[1725588084712,6.77441996,56660.0,56659.0,0.0299962]
[1725588085013,6.77441996,56660.0,56659.0,0.0316282]
[1725588086016,7.3800674,56660.0,56659.0,0.0316282]
[1725588086436,7.2477718,56660.0,56659.0,0.0316282]
[1725588086640,7.38006453,56660.0,56659.0,0.0316282]
[1725588087260,7.3808522,56660.0,56659.0,0.0316282]
[1725588087466,7.2477718,56660.0,56659.0,0.0316282]
[1725588087700,7.2467718,56660.0,56659.0,0.0316282]
[1725588087928,7.2477718,56660.0,56659.0,0.0316282]
[1725588088186,7.24855947,56660.0,56659.0,0.0316282]
[1725588088462,7.3808522,56660.0,56659.0,0.0316282]
[1725588088645,7.35318381,56660.0,56659.0,0.0316282]
[1725588088880,7.70616581,56660.0,56659.0,2e-07]
[1725588089126,2.52387308,56660.0,56659.0,2e-07]
[1725588090022,3.07387308,56660.0,56659.0,2e-07]
[1725588090902,0.176513,56653.0,56651.0,0.18338998]
[1725588091122,0.176513,56653.0,56651.0,0.05108998]
[1725588091123,6.055565,56653.0,56651.0,0.05108998]
[1725588091349,6.055565,56653.0,56650.0,0.00164]
[1725588091350,0.02,56651.0,56650.0,9.8e-07]
[1725588091566,1.65933558,56651.0,56650.0,9.8e-07]
[1725588091768,2.437747,56651.0,56650.0,9.8e-07]
[1725588091998,2.46542095,56651.0,56650.0,0.23500098]
[1725588093119,2.49042095,56651.0,56650.0,0.13230098]
[1725588093545,2.51137283,56651.0,56650.0,0.13230098]
[1725588093764,7.56137283,56651.0,56650.0,0.13230098]
[1725588094903,7.567826,56651.0,56650.0,0.13230098]
[1725588095586,7.578826,56651.0,56650.0,0.13230098]
[1725588096255,7.567826,56651.0,56650.0,0.13230098]
[1725588096441,7.579826,56651.0,56650.0,0.13230098]
[1725588098589,7.55215205,56651.0,56650.0,0.13230098]
[1725588099025,6.92688705,56651.0,56650.0,0.13230098]
[1725588100361,6.55384905,56651.0,56650.0,0.13230098]
[1725588100581,2.35057605,56651.0,56650.0,0.23450098]
[1725588101026,2.33757605,56651.0,56650.0,0.23450098]
[1725588101315,0.54801017,56651.0,56650.0,0.23450098]
[1725588101574,0.03145317,56651.0,56650.0,0.24650098]
[1725588101862,0.10567325,56667.0,56666.0,0.1161]
[1725588101863,0.705878,56667.0,56666.0,0.1161]
[1725588101963,1.235286,56667.0,56666.0,0.1161]
[1725588102062,1.235286,56667.0,56666.0,0.1051]
[1725588102063,1.625001,56667.0,56666.0,0.1051]
[1725588102285,1.66943982,56667.0,56666.0,0.1051]
[1725588102483,3.50816978,56667.0,56666.0,0.1051]
[1725588102682,3.50816978,56667.0,56666.0,0.1041]
[1725588102683,1.62580236,56667.0,56666.0,0.1041]
[1725588102902,0.04874236,56667.0,56666.0,0.2083]
[1725588103106,0.04874236,56667.0,56666.0,0.394772]
[1725588103107,0.02766478,56667.0,56666.0,0.394772]
[1725588103322,0.000816,56676.0,56675.0,0.541333]
[1725588103550,0.000816,56676.0,56675.0,0.643533]
[1725588103766,0.000816,56679.0,56678.0,0.531305]
[1725588103981,0.000816,56685.0,56678.0,0.531305]
[1725588103982,0.000816,56685.0,56684.0,0.531249]
[1725588104184,0.000816,56692.0,56691.0,0.541183]
[1725588104493,0.000816,56692.0,56691.0,0.579283]
[1725588104701,0.000816,56692.0,56691.0,0.6109983]
[1725588104908,0.177207,56692.0,56691.0,0.0838153]
[1725588105295,0.177207,56692.0,56691.0,0.2602093]
[1725588105296,0.000816,56692.0,56691.0,0.2602093]
[1725588105530,0.000816,56692.0,56691.0,0.2462093]
[1725588105696,0.000816,56692.0,56691.0,0.7330983]
[1725588105900,0.000816,56692.0,56691.0,0.3803093]
[1725588106366,0.000816,56692.0,56691.0,0.2039153]
[1725588106636,0.177207,56692.0,56691.0,0.2039153]
[1725588106859,0.52999,56692.0,56691.0,0.2089153]
[1725588107070,0.882773,56692.0,56691.0,0.2089153]
[1725588107564,0.882773,56692.0,56691.0,0.1772]
[1725588107875,1.235556,56692.0,56691.0,0.1772]
[1725588108410,2.755306,56692.0,56691.0,0.1772]
[1725588108621,2.164704,56692.0,56691.0,0.1772]
[1725588108832,2.264704,56692.0,56691.0,0.1772]
[1725588109742,3.02396399,56692.0,56691.0,0.011]
[1725588109981,3.02396399,56692.0,56691.0,0.00340743]
[1725588110443,3.02396399,56692.0,56682.0,0.1281]
[1725588110444,1.587775,56683.0,56682.0,0.1281]
[1725588110661,3.556307,56683.0,56682.0,0.1281]
[1725588110909,3.556307,56683.0,56682.0,0.15957722]
[1725588111226,2.621834,56683.0,56682.0,0.1281]
[1725588112456,2.64948986,56683.0,56682.0,0.1281]
[1725588113559,2.13665586,56683.0,56682.0,0.1281]
[1725588113818,1.94677986,56683.0,56682.0,0.1281]
[1725588114012,1.77011986,56683.0,56682.0,0.1281]
[1725588114534,1.79047458,56683.0,56682.0,0.1281]
[1725588116667,2.78831958,56683.0,56682.0,0.1281]
[1725588116887,2.43548058,56683.0,56682.0,0.1281]
[1725588117109,2.78831958,56683.0,56682.0,0.1281]
[1725588118065,1.88152758,56683.0,56682.0,0.1281]
[1725588118467,2.23436658,56683.0,56682.0,0.1281]